fUSD/lending_fUSD_20250416
["ID","MTS","AMOUNT","RATE_DAILY","PERIOD"]
[358171601,1744815132696,-500.0,0.00056712,120]
[358171602,1744815132794,-402.33486514,0.00056712,120]
[358171603,1744815132889,-500.0,0.00056712,120]
[358171604,1744815132987,-1119.49,0.00056712,120]
[358171605,1744815133082,-500.0,0.00056712,120]
[358171606,1744815133173,-500.0,0.00056712,120]
[358171607,1744815133264,-500.0,0.00056712,120]
[358171608,1744815133351,-1164.47,0.00056712,120]
[358171609,1744815133434,-500.0,0.00056712,120]
[358171610,1744815133511,-500.0,0.00056712,120]
[358171611,1744815133587,-500.0,0.00056712,120]
[358171612,1744815133662,-500.0,0.00056712,120]
[358171613,1744815133739,-500.0,0.00056712,120]
[358171614,1744815133823,-500.0,0.00056712,120]
[358171615,1744815133907,-500.0,0.00056712,120]
[358171616,1744815133991,-2157.23,0.00056712,120]
[358171617,1744815134077,-2143.66,0.00056712,120]
[358171618,1744815134161,-2137.01,0.00056712,120]
[358171619,1744815134247,-500.0,0.00056712,120]
[358171620,1744815134332,-1217.27,0.00056712,120]
[358171621,1744815134415,-1362.34,0.00056712,120]
[358171622,1744815134505,-500.0,0.00056712,120]
[358171623,1744815134596,-744.68,0.00056712,120]
[358171624,1744815134685,-500.0,0.00056712,120]
[358171625,1744815134770,-500.0,0.00056712,120]
[358171626,1744815134860,-500.0,0.00056712,118]
[358171627,1744815134947,-1016.72,0.00056712,120]
[358171628,1744815135032,-500.0,0.00056712,120]
[358171629,1744815135116,-500.0,0.00056712,120]
[358171630,1744815135197,-500.0,0.00056712,120]
[358171631,1744815135283,-500.0,0.00056712,120]
[358171632,1744815135369,-500.0,0.00056712,120]
[358171633,1744815135456,-500.0,0.00056712,120]
[358171634,1744815135542,-500.0,0.00056712,120]
[358171635,1744815135634,-500.0,0.00056712,120]
[358171636,1744815135726,-995.69,0.00056712,120]
[358171637,1744815135818,-500.0,0.00056712,120]
[358171638,1744815135912,-574.46,0.00056712,120]
[358171639,1744815136004,-991.54,0.00056712,120]
[358171640,1744815136094,-488.13560845,0.00056712,120]
[358171641,1744815136179,-500.0,0.00056712,120]
[358171642,1744815136264,-904.33,0.00056712,120]
[358171643,1744815136354,-500.0,0.00056712,120]
[358171644,1744815136441,-404.80407366,0.00056712,120]
[358171645,1744815136524,-500.0,0.00056712,120]
[358171646,1744815136610,-500.0,0.00056712,120]
[358171647,1744815136695,-419.78161898,0.00056712,120]
[358171648,1744815136777,-643.40235609,0.00056712,120]
[358171649,1744815136862,-500.0,0.00056712,120]
[358171650,1744815136942,-500.0,0.00056712,120]
[358171651,1744815137024,-500.0,0.00056712,120]
[358171652,1744815137104,-500.0,0.00056712,120]
[358171653,1744815137183,-500.0,0.00056712,120]
[358171654,1744815137267,-500.0,0.00056712,120]
[358171655,1744815137352,-1154.03,0.00056712,120]
[358171656,1744815137435,-500.0,0.00056712,120]
[358171657,1744815137515,-569.11409175,0.00056712,120]
[358171658,1744815137592,-825.38,0.00056712,120]
[358171659,1744815137668,-500.0,0.00056712,120]
[358171660,1744815137745,-628.67223944,0.00056712,120]
[358171661,1744815137829,-500.0,0.00056712,120]
[358171662,1744815137910,-560.05,0.00056712,120]
[358171663,1744815137992,-500.0,0.00056712,120]
[358171664,1744815138077,-500.0,0.00056712,120]
[358171665,1744815138161,-1244.43,0.00056712,120]
[358171666,1744815138246,-500.0,0.00056712,120]
[358171667,1744815138331,-500.0,0.00056712,120]
[358171668,1744815138415,-500.0,0.00056712,120]
[358171669,1744815138496,-500.0,0.00056712,120]
[358171670,1744815138575,-1072.2,0.00056712,120]
[358171671,1744815138652,-500.0,0.00056712,120]
[358171672,1744815138735,-1000.0,0.00056712,120]
[358171673,1744815138821,-500.0,0.00056712,120]
[358171674,1744815138904,-500.0,0.00056712,120]
[358171675,1744815138985,-150.0,0.00056798,120]
[358171676,1744815139068,-150.0,0.00056929,120]
[358171677,1744815139155,-151.0,0.00056932,120]
[358171678,1744815139245,-250.0,0.00056986,120]
[358171679,1744815139337,-151.831469,0.00056986,120]
[358171680,1744815139433,-1243.06979,0.00056986,120]
[358171681,1744815139529,-6871.74,0.00056986,90]
[358171682,1744815139623,-6585.42,0.00056986,90]
[358171683,1744815139721,-500.0,0.00056986,120]
[358171684,1744815139810,-1306.35,0.00056986,120]
[358171685,1744815139900,-500.0,0.00056986,120]
[358171686,1744815139989,-1665.11,0.00056986,120]
[358171687,1744815140077,-500.0,0.00056986,120]
[358171688,1744815140161,-765.33,0.00056986,120]
[358171689,1744815140246,-500.0,0.00056986,120]
[358171690,1744815140336,-500.0,0.00056986,120]
[358171691,1744815140421,-637.3,0.00056986,120]
[358171692,1744815140503,-500.0,0.00056986,120]
[358171693,1744815140580,-500.0,0.00056986,120]
[358171694,1744815140659,-500.0,0.00056986,120]
[358171695,1744815140739,-500.0,0.00056986,120]
[358171696,1744815140821,-500.0,0.00056986,120]
[358171697,1744815141064,-500.0,0.00056986,120]
[358171698,1744815141148,-500.0,0.00056986,120]
[358171699,1744815141231,-500.0,0.00056986,120]
[358171700,1744815141313,-500.0,0.00056986,120]
[358171701,1744815141392,-600.51077212,0.00056986,120]
[358171702,1744815141471,-500.0,0.00056986,120]
[358171703,1744815141551,-500.0,0.00056986,120]
[358171704,1744815141635,-500.0,0.00056986,120]
[358171705,1744815141714,-500.0,0.00056986,120]
[358171706,1744815141792,-500.0,0.00056986,120]
[358171707,1744815141875,-500.0,0.00056986,120]
[358171708,1744815141951,-500.0,0.00056986,120]
[358171709,1744815142023,-544.98066575,0.00056986,120]
[358171710,1744815142100,-403.54103643,0.00056986,120]
[358171711,1744815142175,-500.0,0.00056986,120]
[358171712,1744815142254,-633.68,0.00056986,120]
[358171713,1744815142335,-500.0,0.00056986,120]
[358171714,1744815142415,-500.0,0.00056986,120]
[358171715,1744815142493,-500.0,0.00056986,120]
[358171716,1744815142578,-500.0,0.00056986,120]
[358171717,1744815142657,-500.0,0.00056986,120]
[358171718,1744815142733,-500.0,0.00056986,120]
[358171719,1744815142811,-500.0,0.00056986,120]
[358171720,1744815142885,-500.0,0.00056986,120]
[358171721,1744815142960,-1291.19,0.00056986,120]
[358171722,1744815143034,-500.0,0.00056986,120]
[358171723,1744815143109,-500.0,0.00056986,120]
[358171724,1744815143184,-2405.34,0.00056986,120]
[358171725,1744815143260,-500.0,0.00056986,120]
[358171726,1744815143335,-500.0,0.00056986,120]
[358171727,1744815143409,-500.0,0.00056986,120]
[358171728,1744815143484,-1984.48,0.00056986,120]
[358171729,1744815143562,-500.0,0.00056986,120]
[358171730,1744815143640,-1154.69,0.00056986,120]
[358171731,1744815143720,-500.0,0.00056986,120]
[358171732,1744815143797,-859.65,0.00056986,120]
[358171733,1744815143876,-500.0,0.00056986,120]
[358171734,1744815143951,-500.0,0.00056986,120]
[358171735,1744815144027,-500.0,0.00056986,120]
[358171736,1744815144102,-1550.92,0.00056986,120]
[358171737,1744815144178,-500.0,0.00056986,120]
[358171738,1744815144258,-1327.19,0.00056986,35]
[358171739,1744815144343,-500.0,0.00056986,30]
[358171740,1744815144423,-1239.55,0.00056986,120]
[358171741,1744815144505,-1194.22,0.00056986,120]
[358171742,1744815144591,-1406.48,0.00056986,120]
[358171743,1744815144677,-823.16,0.00056986,120]
[358171744,1744815144761,-610.03,0.00056986,120]
[358171745,1744815144848,-1446.67,0.00056986,120]
[358171746,1744815144933,-1272.59,0.00056986,120]
[358171747,1744815145018,-500.0,0.00056986,120]
[358171748,1744815145097,-1436.95,0.00056986,120]
[358171749,1744815145174,-500.0,0.00056986,120]
[358171750,1744815145251,-500.0,0.00056986,120]
[358171751,1744815145333,-500.0,0.00056986,120]
[358171752,1744815145415,-500.0,0.00056986,120]
[358171753,1744815145498,-500.0,0.00056986,120]
[358171754,1744815145579,-500.0,0.00056986,120]
[358171755,1744815145657,-1065.65,0.00056986,120]
[358171756,1744815145741,-500.0,0.00056986,120]
[358171757,1744815145829,-500.0,0.00056986,120]
[358171758,1744815145917,-1106.45,0.00056986,120]
[358171759,1744815146001,-500.0,0.00056986,120]
[358171760,1744815146082,-1467.04,0.00056986,120]
[358171761,1744815146161,-500.0,0.00056986,120]
[358171762,1744815146244,-556.41,0.00056986,120]
[358171763,1744815146333,-500.0,0.00056986,120]
[358171764,1744815146423,-500.0,0.00056986,120]
[358171765,1744815146514,-1902.3,0.00056986,120]
[358171766,1744815146607,-500.0,0.00056986,120]
[358171767,1744815146696,-1316.02,0.00056986,120]
[358171768,1744815146784,-500.0,0.00056986,120]
[358171769,1744815146878,-1734.75,0.00056986,120]
[358171770,1744815146963,-500.0,0.00056986,120]
[358171771,1744815147054,-500.0,0.00056986,120]
[358171772,1744815147140,-1956.07,0.00056986,120]
[358171773,1744815147223,-500.0,0.00056986,120]
[358171774,1744815147305,-500.0,0.00056986,120]
[358171775,1744815147384,-1151.52,0.00056986,120]
[358171776,1744815147463,-500.0,0.00056986,120]
[358171777,1744815147549,-1094.55,0.00056986,120]
[358171778,1744815147634,-760.37,0.00056986,120]
[358171779,1744815147716,-500.0,0.00056986,120]
[358171780,1744815147794,-1445.11,0.00056986,120]
[358171781,1744815147873,-2153.97,0.00056986,120]
[358171782,1744815147947,-901.79,0.00056986,30]
[358171783,1744815148020,-500.0,0.00056986,120]
[358171784,1744815148108,-500.0,0.00056986,120]
[358171785,1744815148186,-500.0,0.00056986,120]
[358171786,1744815148269,-500.0,0.00056986,120]
[358171787,1744815148354,-500.0,0.00056986,120]
[358171788,1744815148439,-500.0,0.00056986,120]
[358171789,1744815148523,-500.0,0.00056986,120]
[358171790,1744815148608,-1207.85,0.00056986,120]
[358171791,1744815148696,-500.0,0.00056986,120]
[358171792,1744815148792,-500.0,0.00056986,120]
[358171793,1744815148885,-1000.0,0.00056986,120]
[358171794,1744815148972,-500.0,0.00056986,120]
[358171795,1744815149052,-167.3686406,0.00056986,120]
[358171796,1744815149130,-1572.69,0.00056986,120]
[358171797,1744815149214,-1092.84,0.00056986,120]
[358171798,1744815149300,-500.0,0.00056986,120]
[358171799,1744815149385,-536.72494845,0.00056986,120]
[358171800,1744815149466,-500.0,0.00056986,30]
[358171801,1744815149776,-500.0,0.00056986,120]
[358171802,1744815149858,-2192.06,0.00056986,120]
[358171803,1744815149934,-584.47523594,0.00056986,120]
[358171804,1744815150011,-193.42173324,0.00056986,120]
[358171805,1744815150082,-165.24879814,0.00056986,120]
[358171806,1744815150155,-2358.99,0.00056986,120]
[358171807,1744815150226,-1214.24,0.00056986,120]
[358171808,1744815150304,-500.0,0.00056986,120]
[358171809,1744815150377,-1582.43,0.00056986,120]
[358171810,1744815150452,-1147.0,0.00056986,120]
[358171811,1744815150534,-1450.41,0.00056986,120]
[358171812,1744815150612,-500.0,0.00056986,120]
[358171813,1744815150688,-317.58332739,0.00056986,120]
[358171814,1744815150772,-821.79,0.00056986,120]
[358171815,1744815150851,-1508.18,0.00056986,120]
[358171816,1744815150921,-1287.91,0.00056986,120]
[358171817,1744815150991,-500.0,0.00056986,120]
[358171818,1744815151063,-500.0,0.00056986,120]
[358171819,1744815151132,-500.0,0.00056986,120]
[358171820,1744815151203,-500.0,0.00056986,120]
[358171821,1744815151283,-500.0,0.00056986,120]
[358171822,1744815151358,-500.0,0.00056986,120]
[358171823,1744815151429,-844.87,0.00056986,120]
[358171824,1744815151504,-500.0,0.00056986,120]
[358171825,1744815151582,-500.0,0.00056986,120]
[358171826,1744815151659,-500.0,0.00056986,120]
[358171827,1744815151737,-500.0,0.00056986,120]
[358171828,1744815151818,-1142.18,0.00056986,120]
[358171829,1744815151896,-607.55642925,0.00056986,120]
[358171830,1744815151971,-777.56,0.00056986,120]
[358171831,1744815152043,-500.0,0.00056986,120]
[358171832,1744815152116,-397.02853048,0.00056986,120]
[358171833,1744815152189,-500.0,0.00056986,120]
[358171834,1744815152267,-167.93973424,0.00056986,120]
[358171835,1744815152346,-500.0,0.00056986,120]
[358171836,1744815152423,-500.0,0.00056986,120]
[358171837,1744815152506,-500.0,0.00056986,120]
[358171838,1744815152589,-500.0,0.00056986,120]
[358171839,1744815152666,-500.0,0.00056986,120]
[358171840,1744815152739,-1336.53,0.00056986,120]
[358171841,1744815152817,-548.6,0.00056986,120]
[358171842,1744815152894,-500.0,0.00056986,120]
[358171843,1744815152977,-500.0,0.00056986,120]
[358171844,1744815153054,-500.0,0.00056986,120]
[358171845,1744815153131,-864.66,0.00056986,120]
[358171846,1744815153204,-500.0,0.00056986,120]
[358171847,1744815153286,-500.0,0.00056986,120]
[358171848,1744815153374,-500.0,0.00056986,120]
[358171849,1744815153461,-1600.01,0.00056986,120]
[358171850,1744815153546,-500.0,0.00056986,120]
[358171851,1744815153631,-500.0,0.00056986,120]
[358171852,1744815153723,-500.0,0.00056986,120]
[358171853,1744815153808,-500.0,0.00056986,120]
[358171854,1744815153889,-500.0,0.00056986,120]
[358171855,1744815153974,-1119.49,0.00056986,120]
[358171856,1744815154066,-500.0,0.00056986,120]
[358171857,1744815154156,-500.0,0.00056986,120]
[358171858,1744815154244,-500.0,0.00056986,120]
[358171859,1744815154332,-1164.47,0.00056986,120]
[358171860,1744815154419,-500.0,0.00056986,120]
[358171861,1744815154504,-500.0,0.00056986,120]
[358171862,1744815154591,-500.0,0.00056986,120]
[358171863,1744815154673,-500.0,0.00056986,120]
[358171864,1744815154755,-500.0,0.00056986,120]
[358171865,1744815154852,-500.0,0.00056986,120]
[358171866,1744815154932,-500.0,0.00056986,120]
[358171867,1744815155017,-2157.23,0.00056986,120]
[358171868,1744815155094,-2143.66,0.00056986,120]
[358171869,1744815155171,-2137.01,0.00056986,120]
[358171870,1744815155249,-500.0,0.00056986,120]
[358171871,1744815155333,-1217.27,0.00056986,120]
[358171872,1744815155414,-1362.34,0.00056986,120]
[358171873,1744815155494,-500.0,0.00056986,120]
[358171874,1744815155578,-744.68,0.00056986,120]
[358171875,1744815155660,-500.0,0.00056986,120]
[358171876,1744815155742,-500.0,0.00056986,120]
[358171877,1744815155825,-500.0,0.00056986,118]
[358171878,1744815155904,-1016.72,0.00056986,120]
[358171879,1744815155978,-500.0,0.00056986,120]
[358171880,1744815156052,-500.0,0.00056986,120]
[358171881,1744815156127,-500.0,0.00056986,120]
[358171882,1744815156198,-500.0,0.00056986,120]
[358171883,1744815156282,-500.0,0.00056986,120]
[358171884,1744815156366,-500.0,0.00056986,120]
[358171885,1744815156450,-390.16970325,0.00056986,120]
[358171886,1744815156535,-500.0,0.00056986,120]
[358171887,1744815156619,-995.69,0.00056986,120]
[358171888,1744815156697,-500.0,0.00056986,120]
[358171889,1744815156773,-574.46,0.00056986,120]
[358171890,1744815156856,-991.54,0.00056986,120]
[358171891,1744815156934,-500.0,0.00056986,120]
[358171892,1744815157014,-904.33,0.00056986,120]
[358171893,1744815157097,-500.0,0.00056986,120]
[358171894,1744815157177,-500.0,0.00056986,120]
[358171895,1744815157260,-500.0,0.00056986,120]
[358171896,1744815157345,-500.0,0.00056986,120]
[358171897,1744815157428,-500.0,0.00056986,120]
[358171898,1744815157512,-500.0,0.00056986,120]
[358171899,1744815157596,-500.0,0.00056986,120]
[358171900,1744815157677,-500.0,0.00056986,120]
[358171901,1744815157759,-500.0,0.00056986,120]
[358171902,1744815157848,-1154.03,0.00056986,120]
[358171903,1744815157933,-825.38,0.00056986,120]
[358171904,1744815158018,-413.06537798,0.00056986,120]
[358171905,1744815158254,-500.0,0.00056986,120]
[358171906,1744815158344,-500.0,0.00056986,120]
[358171907,1744815158433,-560.05,0.00056986,120]
[358171908,1744815158516,-554.02182369,0.00056986,120]
[358171909,1744815158597,-500.0,0.00056986,120]
[358171910,1744815158679,-1244.43,0.00056986,120]
[358171911,1744815158763,-500.0,0.00056986,120]
[358171912,1744815158853,-500.0,0.00056986,120]
[358171913,1744815158936,-500.0,0.00056986,120]
[358171914,1744815159018,-500.0,0.00056986,120]
[358171915,1744815159096,-560.5332398,0.00056986,120]
[358171916,1744815159179,-1072.2,0.00056986,120]
[358171917,1744815159262,-660.54,0.00056986,120]
[358171918,1744815159343,-500.0,0.00056986,120]
[358171919,1744815159423,-500.0,0.00056986,120]
[358171920,1744815159508,-43658.63445203,0.00057,57]
[358171921,1744815159688,-106.317,0.0001764,2]
[358171922,1744815159698,-250.0,0.00017728,2]
[358171923,1744815159708,-250.0,0.00017871,2]
[358171924,1744815159717,-471.20962815,0.00017954,2]
[358171925,1744815159727,-418.95327468,0.00017972,2]
[358171926,1744815159738,-947.93627734,0.00017972,2]
[358171927,1744815159747,-2049.75472266,0.00017999,2]
[358171928,1744815159759,-636.84170514,0.00017999,2]
[358171929,1744815159771,-411.64114999,0.00017999,2]
[358171930,1744815159781,-805.851417,0.00017999,2]
[358171931,1744815159792,-350.0,0.00017999,2]
[358171932,1744815159806,-372.96495943,0.00017999,2]
[358171933,1744815159818,-1905.5706303,0.00017999,2]
[358171934,1744815159827,-314.52080433,0.00017999,2]
[358171935,1744815159836,-1078.6617704,0.00018,2]
[358171936,1744815159847,-1284.89999991,0.00018,2]
[358171937,1744815159857,-5969.88248635,0.00018,2]
[358171938,1744815159867,-2686.01008024,0.00018,2]
[358171939,1744815160379,-4778.77353998,0.00018,2]
[358171940,1744815160390,-619.24477862,0.00018,2]
[358171941,1744815160406,-5441.49943164,0.00018,2]
[358171942,1744815160418,-1277.90000016,0.00018,2]
[358171943,1744815160430,-1576.60667861,0.00018,2]
[358171944,1744815160442,-2051.23192596,0.00018,2]
[358171945,1744815160487,-296.27712541,0.00018,2]
[358171946,1744815160499,-2000.0,0.00018,2]
[358171947,1744815160516,-2540.73,0.00018,2]
[358171948,1744815160527,-6935.79444607,0.00018,2]
[358171949,1744815160539,-1674.96098433,0.00018,2]
[358171950,1744815160551,-458.388138,0.00018,2]
[358171951,1744815160837,-3218.173501,0.00018,2]
[358171952,1744815160849,-507795.99999991,0.00018,2]
[358171953,1744815160862,-2800.53668364,0.00018,2]
[358171954,1744815162697,-37421.02705004,0.00018,2]
[358171955,1744815162708,-1322.54584338,0.00018,2]
[358171956,1744815162783,-798.63431999,0.00018,2]
[358171957,1744815163677,-229.14220546,0.00017552,2]
[358171958,1744815262518,250.0,0.00017,2]
[358171960,1744815512201,-161.5,0.0001764,2]
[358171961,1744815537276,-219.72,0.00032877,30]
[358171962,1744815537316,-352.715,0.0004073,59]
[358171963,1744815537354,-500.0,0.00041093,30]
[358171964,1744815537394,-500.0,0.00041517,30]
[358171965,1744815537430,-788.45159435,0.00041957,30]
[358171966,1744815537465,-500.0,0.00042809,30]
[358171967,1744815537501,-500.0,0.0004313,30]
[358171968,1744815537537,-153.0,0.00043288,30]
[358171969,1744815537572,-153.0,0.00043288,30]
[358171970,1744815537608,-153.0,0.00043288,30]
[358171971,1744815537645,-153.0,0.00043288,30]
[358171972,1744815537684,-153.0,0.00043288,30]
[358171973,1744815537721,-153.0,0.00043288,30]
[358171974,1744815537761,-153.0,0.00043288,30]
[358171975,1744815537797,-153.0,0.00043288,30]
[358171976,1744815537835,-153.0,0.00043288,30]
[358171977,1744815537871,-153.0,0.00043288,30]
[358171978,1744815537908,-153.0,0.00043288,30]
[358171979,1744815537946,-153.0,0.00043288,30]
[358171980,1744815537983,-153.0,0.00043288,30]
[358171981,1744815538020,-500.0,0.00043996,30]
[358171982,1744815538059,-500.0,0.00045079,30]
[358171983,1744815538096,-500.0,0.00046472,30]
[358171984,1744815538134,-1000.0,0.00048,120]
[358171985,1744815538171,-235.0,0.000492,30]
[358171986,1744815538208,-989.1,0.000492,30]
[358171987,1744815538245,-1004.66025359,0.00049401,120]
[358171988,1744815538282,-6485.01185124,0.0005,120]
[358171989,1744815538320,-7565.41,0.0005,120]
[358171990,1744815538360,-2500.0,0.0005,120]
[358171991,1744815538399,-151.0,0.000505,120]
[358171992,1744815538438,-152.92,0.00050682,120]
[358171993,1744815538479,-1000.0,0.00050803,120]
[358171994,1744815538519,-166.0,0.000513,120]
[358171995,1744815538558,-165.0,0.000513,120]
[358171996,1744815538598,-150.0,0.00051855,30]
[358171997,1744815538637,-207.98,0.00051855,30]
[358171998,1744815538679,-886.86,0.00051855,30]
[358171999,1744815538719,-150.0,0.00051855,30]
[358172000,1744815538759,-150.0,0.00051855,30]
[358172001,1744815538799,-450.43,0.00051855,30]
[358172002,1744815538839,-450.43,0.00051855,30]
[358172003,1744815538876,-450.43,0.00051855,30]
[358172004,1744815538913,-310.02,0.00051855,30]
[358172005,1744815538950,-150.0,0.00051983,30]
[358172006,1744815538988,-447.68,0.00051983,30]
[358172007,1744815539026,-151.0,0.00052,120]
[358172008,1744815539063,-524.25,0.00052054,120]
[358172009,1744815539099,-500.0,0.00052054,120]
[358172010,1744815539135,-500.0,0.00052054,120]
[358172011,1744815539171,-500.0,0.00052054,120]
[358172012,1744815539208,-1133.53,0.00052054,120]
[358172013,1744815539244,-649.90967409,0.00052054,120]
[358172014,1744815539281,-1889.13,0.00052054,120]
[358172015,1744815539318,-500.0,0.00052054,120]
[358172016,1744815539357,-593.80782529,0.00052054,120]
[358172017,1744815539567,-500.0,0.00052054,120]
[358172018,1744815539608,-798.31,0.00052054,118]
[358172019,1744815539646,-500.0,0.00052054,120]
[358172020,1744815539685,-500.0,0.00052054,120]
[358172021,1744815539722,-500.0,0.00052054,120]
[358172022,1744815539760,-500.0,0.00052054,120]
[358172023,1744815539798,-2000.0,0.00052054,120]
[358172024,1744815539834,-500.0,0.00052054,120]
[358172025,1744815539871,-500.0,0.00052054,120]
[358172026,1744815539908,-500.0,0.00052054,120]
[358172027,1744815539947,-790.86,0.00052054,120]
[358172028,1744815539984,-1348.27,0.00052054,120]
[358172029,1744815540023,-500.0,0.00052054,120]
[358172030,1744815540061,-577.0429061,0.00052054,120]
[358172031,1744815540100,-500.0,0.00052054,120]
[358172032,1744815540138,-619.72,0.00052054,120]
[358172033,1744815540176,-1016.06,0.00052054,120]
[358172034,1744815540215,-500.0,0.00052054,120]
[358172035,1744815540257,-248.15475546,0.00052054,120]
[358172036,1744815540295,-500.0,0.00052054,120]
[358172037,1744815540332,-500.0,0.00052054,120]
[358172038,1744815540370,-500.0,0.00052054,120]
[358172039,1744815540409,-500.0,0.00052054,120]
[358172040,1744815540448,-500.0,0.00052054,120]
[358172041,1744815540485,-500.0,0.00052054,120]
[358172042,1744815540525,-1311.2,0.00052054,120]
[358172043,1744815540564,-551.59,0.00052054,120]
[358172044,1744815540603,-753.72,0.00052054,120]
[358172045,1744815540641,-500.0,0.00052054,120]
[358172046,1744815540679,-500.0,0.00052054,120]
[358172047,1744815540716,-500.0,0.00052054,120]
[358172048,1744815540753,-500.0,0.00052054,120]
[358172049,1744815540792,-500.0,0.00052054,120]
[358172050,1744815540827,-500.0,0.00052054,120]
[358172051,1744815540862,-500.0,0.00052054,120]
[358172052,1744815540897,-500.0,0.00052054,120]
[358172053,1744815540932,-500.0,0.00052054,120]
[358172054,1744815540974,-500.0,0.00052054,120]
[358172055,1744815541013,-500.0,0.00052054,120]
[358172056,1744815541051,-585.92160911,0.00052054,120]
[358172057,1744815541088,-500.0,0.00052054,120]
[358172058,1744815541125,-500.0,0.00052054,120]
[358172059,1744815541162,-500.0,0.00052054,120]
[358172060,1744815541199,-500.0,0.00052054,120]
[358172061,1744815541234,-585.49,0.00052054,120]
[358172062,1744815541270,-500.0,0.00052054,120]
[358172063,1744815541305,-500.0,0.00052054,120]
[358172064,1744815541341,-520.26694124,0.00052054,120]
[358172065,1744815541376,-1136.67,0.00052054,120]
[358172066,1744815541412,-970.9,0.00052054,120]
[358172067,1744815541447,-1332.05,0.00052054,120]
[358172068,1744815541483,-500.0,0.00052054,120]
[358172069,1744815541518,-500.0,0.00052054,120]
[358172070,1744815541553,-410.71288431,0.00052054,120]
[358172071,1744815541588,-500.0,0.00052054,120]
[358172072,1744815541625,-500.0,0.00052054,120]
[358172073,1744815541663,-514.72,0.00052054,120]
[358172074,1744815541703,-670.12,0.00052054,120]
[358172075,1744815541741,-1653.98,0.00052054,120]
[358172076,1744815541777,-500.0,0.00052054,120]
[358172077,1744815541813,-500.0,0.00052054,120]
[358172078,1744815541849,-500.0,0.00052054,120]
[358172079,1744815541885,-500.0,0.00052054,120]
[358172080,1744815541922,-500.0,0.00052054,120]
[358172081,1744815541959,-500.0,0.00052054,120]
[358172082,1744815541998,-500.0,0.00052054,120]
[358172083,1744815542034,-500.0,0.00052054,120]
[358172084,1744815542072,-500.0,0.00052054,120]
[358172085,1744815542110,-500.0,0.00052054,120]
[358172086,1744815542148,-500.0,0.00052054,120]
[358172087,1744815542183,-500.0,0.00052054,120]
[358172088,1744815542219,-514.96,0.00052054,120]
[358172089,1744815542254,-500.0,0.00052054,120]
[358172090,1744815542290,-500.0,0.00052054,120]
[358172091,1744815542326,-1299.37,0.00052054,120]
[358172092,1744815542363,-500.0,0.00052054,120]
[358172093,1744815542400,-500.0,0.00052054,120]
[358172094,1744815542436,-500.0,0.00052054,120]
[358172095,1744815542473,-500.0,0.00052054,120]
[358172096,1744815542509,-500.0,0.00052054,120]
[358172097,1744815542544,-500.0,0.00052054,120]
[358172098,1744815542581,-500.0,0.00052054,120]
[358172099,1744815542618,-175.77328679,0.00052054,120]
[358172100,1744815542655,-500.0,0.00052054,120]
[358172102,1744815542691,-500.0,0.00052054,120]